[Event "Late-Titled-Tuesday-Blitz-April-02-2024"]
[Site "Chess.com"]
[Date "2024.04.02"]
[Round "3"]
[White "Sesleria"]
[Black "OlaaLa"]
[Result "0-1"]
[WhiteElo "2155"]
[BlackElo "2377"]
[TimeControl "180+1"]
[EndTime "14:27:08 PDT"]
[Termination "OlaaLa won by resignation"]

1. c4 {[%clk 0:02:58.8]} 1... f5 {[%clk 0:02:57.8]} 2. g3 {[%clk 0:02:45.5]}
2... g6 {[%clk 0:02:56.9]} 3. Bg2 {[%clk 0:02:45.5]} 3... Bg7 {[%clk 0:02:57.4]}
4. d4 {[%clk 0:02:40.6]} 4... Nf6 {[%clk 0:02:56.1]} 5. Nf3 {[%clk 0:02:34.5]}
5... d6 {[%clk 0:02:54.1]} 6. O-O {[%clk 0:02:33.5]} 6... O-O {[%clk 0:02:49.7]}
7. b4 {[%clk 0:02:26.5]} 7... a5 {[%clk 0:02:32.8]} 8. b5 {[%clk 0:02:25]} 8...
Nbd7 {[%clk 0:02:06.6]} 9. Bb2 {[%clk 0:02:22.5]} 9... Nb6 {[%clk 0:02:06.4]}
10. Qc2 {[%clk 0:02:20.4]} 10... Be6 {[%clk 0:02:02]} 11. Nfd2 {[%clk
0:02:07.1]} 11... d5 {[%clk 0:01:49.3]} 12. c5 {[%clk 0:02:00.8]} 12... Nbd7
{[%clk 0:01:48]} 13. a4 {[%clk 0:01:59.8]} 13... c6 {[%clk 0:01:46.9]} 14. Na3
{[%clk 0:01:37.3]} 14... Ne4 {[%clk 0:01:35]} 15. f3 {[%clk 0:01:34.5]} 15...
Nxd2 {[%clk 0:01:34.6]} 16. Qxd2 {[%clk 0:01:34.5]} 16... f4 {[%clk 0:01:35.1]}
17. Rae1 {[%clk 0:01:31.5]} 17... Qb8 {[%clk 0:01:29.3]} 18. b6 {[%clk
0:01:25.6]} 18... fxg3 {[%clk 0:01:28.3]} 19. hxg3 {[%clk 0:01:21.8]} 19... Qxg3
{[%clk 0:01:27.9]} 20. e4 {[%clk 0:01:18.9]} 20... Rae8 {[%clk 0:01:15.8]} 21.
e5 {[%clk 0:01:09.7]} 21... h5 {[%clk 0:01:14.9]} 22. Bc1 {[%clk 0:01:09.6]}
22... h4 {[%clk 0:01:09.6]} 23. Qg5 {[%clk 0:00:59.4]} 23... Qxg5 {[%clk
0:01:08.4]} 24. Bxg5 {[%clk 0:00:59.4]} 24... h3 {[%clk 0:01:09.3]} 25. Bh1
{[%clk 0:00:59]} 25... Rf5 {[%clk 0:01:07.5]} 26. f4 {[%clk 0:00:58.5]} 26...
Nf8 {[%clk 0:00:59]} 27. Kh2 {[%clk 0:00:56.4]} 27... Nh7 {[%clk 0:00:58.9]} 28.
Rg1 {[%clk 0:00:56.8]} 28... Nxg5 {[%clk 0:00:49.5]} 29. Rxg5 {[%clk 0:00:57.1]}
29... Rxf4 {[%clk 0:00:47.2]} 30. Rxg6 {[%clk 0:00:56.7]} 30... Bf5 {[%clk
0:00:47.4]} 31. Rg3 {[%clk 0:00:55.5]} 31... Rxd4 {[%clk 0:00:37.1]} 32. Bf3
{[%clk 0:00:47.6]} 32... Rd2+ {[%clk 0:00:26.6]} 33. Kh1 {[%clk 0:00:45.2]}
33... h2 {[%clk 0:00:27.1]} 34. Rg2 {[%clk 0:00:43.6]} 34... Rxg2 {[%clk
0:00:26.4]} 35. Bxg2 {[%clk 0:00:43.9]} 35... Rf8 {[%clk 0:00:18.7]} 36. Kxh2
{[%clk 0:00:41.3]} 36... Bd3 {[%clk 0:00:18.8]} 37. Re3 {[%clk 0:00:38.7]} 37...
Ba6 {[%clk 0:00:17.4]} 38. Nc2 {[%clk 0:00:36.6]} 38... Rf2 {[%clk 0:00:17.2]}
39. Nd4 {[%clk 0:00:36.1]} 39... Bf1 {[%clk 0:00:15.2]} 40. Rg3 {[%clk
0:00:36.2]} 40... Rxg2+ {[%clk 0:00:13.7]} 41. Rxg2 {[%clk 0:00:35.8]} 41...
Bxg2 {[%clk 0:00:14.3]} 42. Kxg2 {[%clk 0:00:36.3]} 42... Bxe5 {[%clk
0:00:14.9]} 43. Nxc6 {[%clk 0:00:36.2]} 43... bxc6 {[%clk 0:00:15]} 0-1

[Event "Late-Titled-Tuesday-Blitz-April-02-2024"]
[Site "Chess.com"]
[Date "2024.04.02"]
[Round "3"]
[White "Janh4"]
[Black "ExtremeLearner"]
[Result "0-1"]
[WhiteElo "2177"]
[BlackElo "2565"]
[TimeControl "180+1"]
[EndTime "14:27:09 PDT"]
[Termination "ExtremeLearner won on time"]

1. d4 {[%clk 0:02:57.2]} 1... Nf6 {[%clk 0:02:59.5]} 2. Nc3 {[%clk 0:02:57]}
2... e6 {[%clk 0:02:58.3]} 3. Bf4 {[%clk 0:02:57.1]} 3... d6 {[%clk 0:02:53.1]}
4. e3 {[%clk 0:02:56.2]} 4... Nbd7 {[%clk 0:02:51.6]} 5. Nf3 {[%clk 0:02:51.2]}
5... Be7 {[%clk 0:02:47]} 6. Bc4 {[%clk 0:02:45.2]} 6... Nh5 {[%clk 0:02:45.8]}
7. Bg3 {[%clk 0:02:45.1]} 7... O-O {[%clk 0:02:34]} 8. e4 {[%clk 0:02:35.6]}
8... Bf6 {[%clk 0:02:19.5]} 9. Qd2 {[%clk 0:02:10.3]} 9... Nxg3 {[%clk
0:02:05.8]} 10. hxg3 {[%clk 0:02:10]} 10... c6 {[%clk 0:02:00.4]} 11. Bd3 {[%clk
0:01:57.6]} 11... e5 {[%clk 0:01:56.6]} 12. dxe5 {[%clk 0:01:45.7]} 12... Nxe5
{[%clk 0:01:56.1]} 13. Nxe5 {[%clk 0:01:45.6]} 13... dxe5 {[%clk 0:01:51.1]} 14.
O-O-O {[%clk 0:01:36.7]} 14... b5 {[%clk 0:01:45.7]} 15. Ne2 {[%clk 0:01:29]}
15... Be6 {[%clk 0:01:38.7]} 16. Kb1 {[%clk 0:01:22.7]} 16... a5 {[%clk
0:01:32.2]} 17. f4 {[%clk 0:01:22.6]} 17... a4 {[%clk 0:01:23.9]} 18. Qc3 {[%clk
0:01:10]} 18... Qc7 {[%clk 0:01:08.2]} 19. f5 {[%clk 0:00:47]} 19... Bxf5 {[%clk
0:00:57.2]} 20. exf5 {[%clk 0:00:35.2]} 20... e4 {[%clk 0:00:58.1]} 21. Qc5
{[%clk 0:00:32.2]} 21... exd3 {[%clk 0:00:56.4]} 22. Rxd3 {[%clk 0:00:30.8]}
22... Rfe8 {[%clk 0:00:51.3]} 23. Nc3 {[%clk 0:00:25.7]} 23... a3 {[%clk
0:00:49.8]} 24. b3 {[%clk 0:00:15.8]} 24... Re5 {[%clk 0:00:31.1]} 25. Qf2
{[%clk 0:00:08.9]} 25... b4 {[%clk 0:00:28.6]} 26. Nd1 {[%clk 0:00:07.8]} 26...
Rae8 {[%clk 0:00:23.6]} 27. Qf4 {[%clk 0:00:02.2]} 27... Qe7 {[%clk 0:00:17.7]}
0-1

[Event "Late-Titled-Tuesday-Blitz-April-02-2024"]
[Site "Chess.com"]
[Date "2024.04.02"]
[Round "3"]
[White "2L8IWUN"]
[Black "vova-79"]
[Result "0-1"]
[WhiteElo "2108"]
[BlackElo "2563"]
[TimeControl "180+1"]
[EndTime "14:27:09 PDT"]
[Termination "vova-79 won by resignation"]

1. Nf3 {[%clk 0:03:00.9]} 1... d5 {[%clk 0:02:59.3]} 2. d4 {[%clk 0:03:01]} 2...
Nf6 {[%clk 0:02:58]} 3. Bf4 {[%clk 0:03:01.3]} 3... c5 {[%clk 0:02:57.9]} 4. e3
{[%clk 0:03:01.3]} 4... Nc6 {[%clk 0:02:58]} 5. Nbd2 {[%clk 0:03:01.6]} 5...
cxd4 {[%clk 0:02:58]} 6. exd4 {[%clk 0:03:01.1]} 6... Bg4 {[%clk 0:02:58.6]} 7.
c3 {[%clk 0:02:58]} 7... e6 {[%clk 0:02:58.7]} 8. Bb5 {[%clk 0:02:56.4]} 8...
Bd6 {[%clk 0:02:57.7]} 9. Bxd6 {[%clk 0:02:41.1]} 9... Qxd6 {[%clk 0:02:58.6]}
10. Be2 {[%clk 0:02:35.8]} 10... O-O {[%clk 0:02:56.2]} 11. O-O {[%clk
0:02:34.5]} 11... Rab8 {[%clk 0:02:54.5]} 12. Re1 {[%clk 0:02:30.6]} 12... Rfc8
{[%clk 0:02:53]} 13. h3 {[%clk 0:02:25.9]} 13... Bh5 {[%clk 0:02:52.3]} 14. Ne5
{[%clk 0:02:08]} 14... Bg6 {[%clk 0:02:48.4]} 15. Ndf3 {[%clk 0:02:03.2]} 15...
b5 {[%clk 0:02:33.4]} 16. a3 {[%clk 0:01:45.4]} 16... a5 {[%clk 0:02:32.3]} 17.
Bd3 {[%clk 0:01:38.7]} 17... b4 {[%clk 0:02:28.6]} 18. axb4 {[%clk 0:01:34.4]}
18... axb4 {[%clk 0:02:29.5]} 19. Ra6 {[%clk 0:01:33]} 19... bxc3 {[%clk
0:02:19.6]} 20. bxc3 {[%clk 0:01:27.3]} 20... Bxd3 {[%clk 0:01:48.7]} 21. Qxd3
{[%clk 0:01:22.7]} 21... Nd7 {[%clk 0:01:48.7]} 22. Rb1 {[%clk 0:01:00.8]} 22...
Rxb1+ {[%clk 0:01:41.2]} 23. Qxb1 {[%clk 0:00:59.9]} 23... Ndb8 {[%clk
0:01:40.6]} 24. Rb6 {[%clk 0:00:42.9]} 24... Qd8 {[%clk 0:01:30.5]} 25. Qb5
{[%clk 0:00:36]} 25... Nxe5 {[%clk 0:01:19.2]} 26. Nxe5 {[%clk 0:00:36.9]} 26...
Qe8 {[%clk 0:01:10]} 27. Qxe8+ {[%clk 0:00:19.8]} 27... Rxe8 {[%clk 0:01:10.9]}
28. c4 {[%clk 0:00:20]} 28... f6 {[%clk 0:01:06]} 29. Nc6 {[%clk 0:00:18.2]}
29... Nxc6 {[%clk 0:01:03.2]} 30. Rxc6 {[%clk 0:00:19.1]} 30... dxc4 {[%clk
0:01:03.5]} 31. Rxc4 {[%clk 0:00:19]} 31... Rd8 {[%clk 0:01:01.6]} 32. g3 {[%clk
0:00:19.3]} 32... Kf7 {[%clk 0:00:59]} 33. f4 {[%clk 0:00:19.5]} 33... h5 {[%clk
0:00:58]} 34. Kf2 {[%clk 0:00:19.9]} 34... Ra8 {[%clk 0:00:56.1]} 35. Rc2 {[%clk
0:00:17.7]} 35... Ra3 {[%clk 0:00:55]} 36. Rd2 {[%clk 0:00:17.6]} 36... Ra5
{[%clk 0:00:48.6]} 37. Ke3 {[%clk 0:00:17.2]} 37... Ke7 {[%clk 0:00:46.6]} 38.
Rd3 {[%clk 0:00:17.1]} 38... Kd6 {[%clk 0:00:46.6]} 39. Ke4 {[%clk 0:00:13.3]}
39... Ra1 {[%clk 0:00:43.9]} 40. Rc3 {[%clk 0:00:12.7]} 40... Rg1 {[%clk
0:00:41.5]} 41. h4 {[%clk 0:00:12.8]} 41... f5+ {[%clk 0:00:38.3]} 42. Kf3
{[%clk 0:00:12.6]} 42... Kd5 {[%clk 0:00:38.8]} 43. Ke3 {[%clk 0:00:12.1]} 43...
Rxg3+ {[%clk 0:00:38.4]} 0-1

[Event "Late-Titled-Tuesday-Blitz-April-02-2024"]
[Site "Chess.com"]
[Date "2024.04.02"]
[Round "3"]
[White "mishanick"]
[Black "Bryanl106"]
[Result "1-0"]
[WhiteElo "3030"]
[BlackElo "2672"]
[TimeControl "180+1"]
[EndTime "14:27:10 PDT"]
[Termination "mishanick won by resignation"]

1. d4 {[%clk 0:03:00.9]} 1... Nf6 {[%clk 0:02:58.2]} 2. Nf3 {[%clk 0:03:00.7]}
2... g6 {[%clk 0:02:56.9]} 3. Nbd2 {[%clk 0:02:58.3]} 3... d5 {[%clk 0:02:54.4]}
4. e3 {[%clk 0:02:58.3]} 4... Bg7 {[%clk 0:02:54.4]} 5. b4 {[%clk 0:02:58.1]}
5... O-O {[%clk 0:02:53.9]} 6. c4 {[%clk 0:02:57.8]} 6... a5 {[%clk 0:02:49.8]}
7. b5 {[%clk 0:02:56.8]} 7... dxc4 {[%clk 0:02:43]} 8. Bxc4 {[%clk 0:02:56.3]}
8... Nbd7 {[%clk 0:02:40.3]} 9. a4 {[%clk 0:02:56.4]} 9... e5 {[%clk 0:02:38.9]}
10. O-O {[%clk 0:02:53]} 10... exd4 {[%clk 0:02:37.2]} 11. Nxd4 {[%clk
0:02:49.6]} 11... Ne5 {[%clk 0:02:21.8]} 12. Bb3 {[%clk 0:02:49.5]} 12... Re8
{[%clk 0:02:20.4]} 13. Qc2 {[%clk 0:02:46.9]} 13... Nd5 {[%clk 0:01:55.5]} 14.
Ba3 {[%clk 0:02:39.3]} 14... Nb4 {[%clk 0:01:54.1]} 15. Bxb4 {[%clk 0:02:38.5]}
15... axb4 {[%clk 0:01:55]} 16. Rad1 {[%clk 0:02:33.2]} 16... Qe7 {[%clk
0:01:50.9]} 17. h3 {[%clk 0:02:32.4]} 17... h5 {[%clk 0:01:48.8]} 18. N2f3
{[%clk 0:02:27.6]} 18... Nxf3+ {[%clk 0:01:47]} 19. Nxf3 {[%clk 0:02:27.9]}
19... Bf5 {[%clk 0:01:46.7]} 20. Qe2 {[%clk 0:02:21]} 20... Be4 {[%clk
0:01:41.6]} 21. Nd2 {[%clk 0:02:15.6]} 21... Bf5 {[%clk 0:01:40.6]} 22. Qf3
{[%clk 0:02:14.1]} 22... Rab8 {[%clk 0:01:32.4]} 23. Nc4 {[%clk 0:02:10.5]}
23... Be4 {[%clk 0:01:31.4]} 24. Qf4 {[%clk 0:02:04.1]} 24... Red8 {[%clk
0:01:30.1]} 25. a5 {[%clk 0:01:28.2]} 25... Bc3 {[%clk 0:01:15.8]} 26. Rxd8+
{[%clk 0:01:16.5]} 26... Rxd8 {[%clk 0:01:14.5]} 27. Rd1 {[%clk 0:01:11.4]}
27... Rxd1+ {[%clk 0:01:13.4]} 28. Bxd1 {[%clk 0:01:12.3]} 28... Bd5 {[%clk
0:01:08.6]} 29. Bb3 {[%clk 0:01:11.4]} 29... Qc5 {[%clk 0:01:07.4]} 30. a6
{[%clk 0:01:02.2]} 30... Qxb5 {[%clk 0:01:07.6]} 31. a7 {[%clk 0:01:01.6]} 31...
Qa6 {[%clk 0:01:08.1]} 32. Qxc7 {[%clk 0:00:59.5]} 32... Qxa7 {[%clk 0:00:58.1]}
33. Qd8+ {[%clk 0:00:58.6]} 33... Kg7 {[%clk 0:00:55.9]} 34. Qxd5 {[%clk
0:00:59.5]} 34... Qa1+ {[%clk 0:00:53.4]} 35. Kh2 {[%clk 0:00:59.9]} 35... Qf1
{[%clk 0:00:52.1]} 36. Nd6 {[%clk 0:00:59.4]} 36... Qxf2 {[%clk 0:00:51.5]} 37.
Qxf7+ {[%clk 0:00:48.5]} 37... Qxf7 {[%clk 0:00:50.8]} 38. Nxf7 {[%clk
0:00:49.4]} 38... Kf6 {[%clk 0:00:48.5]} 39. Kg3 {[%clk 0:00:50]} 39... g5
{[%clk 0:00:45.8]} 40. Kf3 {[%clk 0:00:50]} 40... b6 {[%clk 0:00:43.5]} 41. g4
{[%clk 0:00:50]} 41... hxg4+ {[%clk 0:00:42.1]} 42. hxg4 {[%clk 0:00:50.9]}
42... Bb2 {[%clk 0:00:42.1]} 43. Ke4 {[%clk 0:00:51.1]} 43... Bc1 {[%clk
0:00:41]} 44. Nd6 {[%clk 0:00:50.8]} 44... Ke7 {[%clk 0:00:39.8]} 45. Nc4 {[%clk
0:00:50.5]} 45... b5 {[%clk 0:00:37.7]} 46. Ne5 {[%clk 0:00:51.1]} 46... Bb2
{[%clk 0:00:31.5]} 47. Nf3 {[%clk 0:00:51.3]} 47... Kf6 {[%clk 0:00:28.9]} 48.
Kd5 {[%clk 0:00:51.9]} 48... Bc1 {[%clk 0:00:26.8]} 49. e4 {[%clk 0:00:52.5]}
49... Ke7 {[%clk 0:00:27.4]} 50. e5 {[%clk 0:00:53.4]} 50... Be3 {[%clk
0:00:26.9]} 51. Nd4 {[%clk 0:00:53.7]} 51... Kd7 {[%clk 0:00:25]} 52. Nf5 {[%clk
0:00:54.6]} 52... Bf4 {[%clk 0:00:24.8]} 53. e6+ {[%clk 0:00:55.5]} 53... Kd8
{[%clk 0:00:25.2]} 54. Kc6 {[%clk 0:00:51]} 54... Ke8 {[%clk 0:00:24.8]} 55.
Kxb5 {[%clk 0:00:51.4]} 55... Kd8 {[%clk 0:00:25]} 56. Kc6 {[%clk 0:00:51.9]}
56... Ke8 {[%clk 0:00:24.9]} 57. Kd5 {[%clk 0:00:52.8]} 57... Kd8 {[%clk
0:00:24.5]} 58. e7+ {[%clk 0:00:53.4]} 1-0

[Event "Late-Titled-Tuesday-Blitz-April-02-2024"]
[Site "Chess.com"]
[Date "2024.04.02"]
[Round "3"]
[White "LastHeroJr"]
[Black "Meri-Arabidze"]
[Result "0-1"]
[WhiteElo "2487"]
[BlackElo "2700"]
[TimeControl "180+1"]
[EndTime "14:27:15 PDT"]
[Termination "Meri-Arabidze won by checkmate"]

1. e4 {[%clk 0:02:59]} 1... c5 {[%clk 0:02:59.9]} 2. Nc3 {[%clk 0:02:59]} 2...
Nc6 {[%clk 0:02:59.7]} 3. g3 {[%clk 0:02:59.3]} 3... g6 {[%clk 0:02:58.5]} 4.
Bg2 {[%clk 0:02:59.5]} 4... Bg7 {[%clk 0:02:59]} 5. d3 {[%clk 0:02:59.6]} 5...
d6 {[%clk 0:02:59.3]} 6. f4 {[%clk 0:03:00.2]} 6... Nf6 {[%clk 0:02:59.4]} 7.
Nf3 {[%clk 0:03:00.8]} 7... O-O {[%clk 0:03:00]} 8. O-O {[%clk 0:03:01.3]} 8...
Rb8 {[%clk 0:03:00.7]} 9. Rb1 {[%clk 0:03:01.2]} 9... b5 {[%clk 0:03:00.7]} 10.
Be3 {[%clk 0:03:01.5]} 10... b4 {[%clk 0:03:00.5]} 11. Ne2 {[%clk 0:03:01.5]}
11... a5 {[%clk 0:02:58.4]} 12. h3 {[%clk 0:03:02]} 12... Ba6 {[%clk 0:02:57.9]}
13. b3 {[%clk 0:03:01.8]} 13... Nd7 {[%clk 0:02:49.8]} 14. g4 {[%clk 0:03:01.4]}
14... e6 {[%clk 0:02:43.6]} 15. h4 {[%clk 0:03:00.1]} 15... d5 {[%clk
0:02:43.1]} 16. e5 {[%clk 0:02:59.7]} 16... c4 {[%clk 0:02:36.9]} 17. dxc4
{[%clk 0:02:56.3]} 17... dxc4 {[%clk 0:02:35.9]} 18. Re1 {[%clk 0:02:56.6]}
18... Qe7 {[%clk 0:02:17.9]} 19. Nfd4 {[%clk 0:02:54.3]} 19... Nxd4 {[%clk
0:02:13.8]} 20. Qxd4 {[%clk 0:02:51.7]} 20... Rfd8 {[%clk 0:02:08.1]} 21. Qa7
{[%clk 0:02:49.9]} 21... Bb5 {[%clk 0:01:59.2]} 22. Nd4 {[%clk 0:02:40.9]} 22...
cxb3 {[%clk 0:01:48.8]} 23. axb3 {[%clk 0:02:40.2]} 23... Qxh4 {[%clk
0:01:40.4]} 24. Qxa5 {[%clk 0:02:39.9]} 24... Nxe5 {[%clk 0:01:02.5]} 25. Bf2
{[%clk 0:02:37.9]} 25... Qxg4 {[%clk 0:00:57.1]} 26. fxe5 {[%clk 0:02:35.9]}
26... Rxd4 {[%clk 0:00:53]} 27. Bxd4 {[%clk 0:02:29.4]} 27... Qxd4+ {[%clk
0:00:52.5]} 28. Kh1 {[%clk 0:02:27.3]} 28... Bxe5 {[%clk 0:00:51.4]} 29. Re4
{[%clk 0:02:19.8]} 29... Qc3 {[%clk 0:00:41]} 30. Rbe1 {[%clk 0:02:15.3]} 30...
Bc7 {[%clk 0:00:31.6]} 31. Qxb4 {[%clk 0:01:34.2]} 31... Qg3 {[%clk 0:00:31]}
32. Kg1 {[%clk 0:01:27.5]} 32... Qh2+ {[%clk 0:00:23.1]} 33. Kf2 {[%clk
0:01:27.2]} 33... Bg3+ {[%clk 0:00:23]} 34. Kf3 {[%clk 0:01:26.6]} 34... Bxe1
{[%clk 0:00:13.4]} 35. Qxe1 {[%clk 0:01:26.9]} 35... Bc6 {[%clk 0:00:12.4]} 36.
Kf2 {[%clk 0:01:23.2]} 36... Bxe4 {[%clk 0:00:12]} 37. Qxe4 {[%clk 0:01:24.1]}
37... Qc7 {[%clk 0:00:11.2]} 38. Bf1 {[%clk 0:01:23.3]} 38... Rc8 {[%clk
0:00:10.8]} 39. Bd3 {[%clk 0:01:22.4]} 39... Qc5+ {[%clk 0:00:10.9]} 40. Ke2
{[%clk 0:01:20.9]} 40... Qd5 {[%clk 0:00:11.4]} 41. Qf4 {[%clk 0:01:19.5]} 41...
e5 {[%clk 0:00:10]} 42. Qg5 {[%clk 0:01:17.2]} 42... Re8 {[%clk 0:00:09.4]} 43.
b4 {[%clk 0:01:15.6]} 43... Qe6 {[%clk 0:00:09]} 44. Be4 {[%clk 0:01:12.9]}
44... Qc4+ {[%clk 0:00:08.9]} 45. Bd3 {[%clk 0:01:10.9]} 45... Qxb4 {[%clk
0:00:09.5]} 46. Qf6 {[%clk 0:01:09.7]} 46... Qe7 {[%clk 0:00:09.4]} 47. Qc6
{[%clk 0:01:08.9]} 47... e4 {[%clk 0:00:09.6]} 48. Bc4 {[%clk 0:01:09]} 48...
Kg7 {[%clk 0:00:09.7]} 49. Qb6 {[%clk 0:01:06.8]} 49... Rd8 {[%clk 0:00:09.1]}
50. Qb2+ {[%clk 0:01:05.3]} 50... Qf6 {[%clk 0:00:09.4]} 51. Qb7 {[%clk
0:01:03.8]} 51... Qf3+ {[%clk 0:00:09.2]} 52. Ke1 {[%clk 0:01:03.8]} 52... Rd1#
{[%clk 0:00:09.9]} 0-1

[Event "Late-Titled-Tuesday-Blitz-April-02-2024"]
[Site "Chess.com"]
[Date "2024.04.02"]
[Round "3"]
[White "TanitoluwaAps116"]
[Black "Veleamater"]
[Result "0-1"]
[WhiteElo "2801"]
[BlackElo "2427"]
[TimeControl "180+1"]
[EndTime "14:27:16 PDT"]
[Termination "Veleamater won on time"]

1. e4 {[%clk 0:02:57.3]} 1... e5 {[%clk 0:03:00.1]} 2. Nf3 {[%clk 0:02:57.2]}
2... Nc6 {[%clk 0:03:00.3]} 3. Bc4 {[%clk 0:02:57.6]} 3... Nf6 {[%clk
0:02:59.9]} 4. d3 {[%clk 0:02:57.9]} 4... Be7 {[%clk 0:03:00.2]} 5. c3 {[%clk
0:02:57.4]} 5... O-O {[%clk 0:03:00]} 6. Bg5 {[%clk 0:02:55.8]} 6... d6 {[%clk
0:02:59.3]} 7. O-O {[%clk 0:02:54.6]} 7... h6 {[%clk 0:02:59.6]} 8. Be3 {[%clk
0:02:51.1]} 8... Be6 {[%clk 0:03:00]} 9. Nbd2 {[%clk 0:02:50.8]} 9... Nd7 {[%clk
0:02:59.1]} 10. Bxe6 {[%clk 0:02:42.1]} 10... fxe6 {[%clk 0:02:58.5]} 11. Qb3
{[%clk 0:02:42.7]} 11... Nf6 {[%clk 0:02:32.5]} 12. Qxe6+ {[%clk 0:02:35.4]}
12... Kh7 {[%clk 0:02:28.4]} 13. Qh3 {[%clk 0:02:32.7]} 13... Qd7 {[%clk
0:02:15.2]} 14. Ng5+ {[%clk 0:02:23.7]} 14... Kg8 {[%clk 0:02:10.2]} 15. Qxd7
{[%clk 0:02:17.4]} 15... Nxd7 {[%clk 0:02:08.9]} 16. Ne6 {[%clk 0:02:18.3]}
16... Rfc8 {[%clk 0:02:05.9]} 17. f4 {[%clk 0:02:16.8]} 17... exf4 {[%clk
0:01:56.5]} 18. Nxf4 {[%clk 0:01:43.7]} 18... Bg5 {[%clk 0:01:54.7]} 19. Rad1
{[%clk 0:01:31.3]} 19... Nde5 {[%clk 0:01:51.1]} 20. Nf3 {[%clk 0:01:13.7]}
20... Nxf3+ {[%clk 0:01:50.1]} 21. gxf3 {[%clk 0:00:55.9]} 21... Rf8 {[%clk
0:01:34.9]} 22. Nd5 {[%clk 0:00:54.3]} 22... Bxe3+ {[%clk 0:01:17.7]} 23. Nxe3
{[%clk 0:00:55.2]} 23... Ne5 {[%clk 0:01:13.8]} 24. f4 {[%clk 0:00:53.8]} 24...
Ng6 {[%clk 0:01:13.2]} 25. f5 {[%clk 0:00:53.7]} 25... Ne5 {[%clk 0:01:13.4]}
26. d4 {[%clk 0:00:48.7]} 26... Nd7 {[%clk 0:01:09.6]} 27. Rde1 {[%clk
0:00:37.8]} 27... Rae8 {[%clk 0:01:07.7]} 28. Nd5 {[%clk 0:00:33.6]} 28... Nf6
{[%clk 0:00:53.3]} 29. Nxc7 {[%clk 0:00:15.7]} 29... Rxe4 {[%clk 0:00:52.1]} 30.
Nb5 {[%clk 0:00:15.6]} 30... d5 {[%clk 0:00:37.1]} 31. Rxe4 {[%clk 0:00:08.1]}
31... Nxe4 {[%clk 0:00:33.7]} 32. Nc7 {[%clk 0:00:04.9]} 32... Rd8 {[%clk
0:00:27.7]} 33. Ne6 {[%clk 0:00:04.1]} 33... Rd6 {[%clk 0:00:25.2]} 34. Nf4
{[%clk 0:00:02.8]} 34... Rb6 {[%clk 0:00:20.4]} 0-1

[Event "Late-Titled-Tuesday-Blitz-April-02-2024"]
[Site "Chess.com"]
[Date "2024.04.02"]
[Round "3"]
[White "DirtyKabab"]
[Black "teresin05"]
[Result "1-0"]
[WhiteElo "2578"]
[BlackElo "2283"]
[TimeControl "180+1"]
[EndTime "14:27:16 PDT"]
[Termination "DirtyKabab won by resignation"]

1. e4 {[%clk 0:03:00.9]} 1... c5 {[%clk 0:02:35.1]} 2. Nf3 {[%clk 0:03:00.4]}
2... Nc6 {[%clk 0:02:35.6]} 3. d4 {[%clk 0:03:00.2]} 3... cxd4 {[%clk
0:02:36.5]} 4. Nxd4 {[%clk 0:03:01]} 4... Nf6 {[%clk 0:02:31.1]} 5. Nc3 {[%clk
0:03:01]} 5... d6 {[%clk 0:02:29.5]} 6. Bg5 {[%clk 0:02:58.9]} 6... e6 {[%clk
0:02:29.3]} 7. Qd2 {[%clk 0:02:58.7]} 7... a6 {[%clk 0:02:25.1]} 8. O-O-O {[%clk
0:02:55.9]} 8... Bd7 {[%clk 0:02:25.4]} 9. f3 {[%clk 0:02:55.2]} 9... h6 {[%clk
0:02:25.8]} 10. Be3 {[%clk 0:02:53.9]} 10... Be7 {[%clk 0:02:24.4]} 11. g4
{[%clk 0:02:48.4]} 11... Nxd4 {[%clk 0:02:24.5]} 12. Bxd4 {[%clk 0:02:47.6]}
12... Bc6 {[%clk 0:02:25]} 13. h4 {[%clk 0:02:42.2]} 13... b5 {[%clk 0:01:57.2]}
14. a3 {[%clk 0:02:35.6]} 14... e5 {[%clk 0:01:45]} 15. Be3 {[%clk 0:02:34.5]}
15... Nd7 {[%clk 0:01:42.6]} 16. Kb1 {[%clk 0:02:25.2]} 16... Nb6 {[%clk
0:01:33.5]} 17. Be2 {[%clk 0:02:20.3]} 17... Qc7 {[%clk 0:00:48.9]} 18. g5
{[%clk 0:02:16.8]} 18... h5 {[%clk 0:00:42.3]} 19. g6 {[%clk 0:01:52.9]} 19...
fxg6 {[%clk 0:00:37.2]} 20. Rdg1 {[%clk 0:01:33.3]} 20... O-O {[%clk 0:00:24.1]}
21. Rxg6 {[%clk 0:01:31.6]} 21... Be8 {[%clk 0:00:20.9]} 22. Rg2 {[%clk
0:00:56.1]} 22... Nc4 {[%clk 0:00:17.6]} 23. Bxc4+ {[%clk 0:00:51.8]} 23... Qxc4
{[%clk 0:00:18.2]} 24. Nd5 {[%clk 0:00:49.9]} 24... Bf6 {[%clk 0:00:17.5]} 25.
Rhg1 {[%clk 0:00:48.8]} 25... g6 {[%clk 0:00:16.4]} 26. Nb6 {[%clk 0:00:43.9]}
26... Qc6 {[%clk 0:00:14.6]} 27. Nxa8 {[%clk 0:00:43.8]} 27... Qxa8 {[%clk
0:00:15.5]} 28. Qxd6 {[%clk 0:00:41.9]} 28... Kg7 {[%clk 0:00:13.5]} 29. Bc5
{[%clk 0:00:41.5]} 29... Rg8 {[%clk 0:00:11.7]} 30. Qe6 {[%clk 0:00:36.6]} 30...
Bf7 {[%clk 0:00:11.3]} 31. Qf5 {[%clk 0:00:36.4]} 31... Kh7 {[%clk 0:00:10.7]}
32. Qxf6 {[%clk 0:00:36.3]} 32... Qb7 {[%clk 0:00:10.9]} 33. Qe7 {[%clk
0:00:35]} 33... Qxe7 {[%clk 0:00:09.2]} 34. Bxe7 {[%clk 0:00:35.9]} 34... Re8
{[%clk 0:00:09.5]} 35. Bg5 {[%clk 0:00:35.9]} 35... Rc8 {[%clk 0:00:08.6]} 36.
Rd2 {[%clk 0:00:36.3]} 36... a5 {[%clk 0:00:08.2]} 37. Rgd1 {[%clk 0:00:36.8]}
37... b4 {[%clk 0:00:08.1]} 38. axb4 {[%clk 0:00:36.7]} 38... axb4 {[%clk
0:00:09]} 39. b3 {[%clk 0:00:37.4]} 39... Rc3 {[%clk 0:00:07.9]} 40. Rd3 {[%clk
0:00:38.1]} 40... Rc7 {[%clk 0:00:07.7]} 41. Rd7 {[%clk 0:00:38.3]} 1-0